fUSD/lending_fUSD_20250826
["ID","MTS","AMOUNT","RATE_DAILY","PERIOD"]
[381399331,1756185116434,-400.0,0.0001726,2]
[381399332,1756185116444,-1696.44,0.0001726,2]
[381399333,1756185116453,-400.0,0.0001726,2]
[381399334,1756185116462,-400.0,0.0001726,2]
[381399335,1756185116472,-431.92,0.0001726,2]
[381399336,1756185116481,-772.1,0.0001726,2]
[381399337,1756185116491,-1254.88,0.0001726,2]
[381399338,1756185116500,-400.0,0.0001726,2]
[381399339,1756185116509,-466.82,0.0001726,2]
[381399340,1756185116518,-453.93,0.0001726,2]
[381399341,1756185116528,-556.57,0.0001726,2]
[381399342,1756185116537,-510.28751973,0.0001726,2]
[381399343,1756185116546,-627.54,0.0001726,2]
[381399344,1756185116556,-577.23,0.0001726,2]
[381399345,1756185116565,-630.88,0.0001726,2]
[381399346,1756185116574,-400.0,0.0001726,2]
[381399347,1756185116583,-400.0,0.0001726,2]
[381399348,1756185116592,-276.86553473,0.0001726,2]
[381399349,1756185116602,-1171.83,0.0001726,2]
[381399350,1756185116611,-400.0,0.0001726,2]
[381399351,1756185116620,-840.99,0.0001726,2]
[381399352,1756185116630,-305.23291691,0.0001726,2]
[381399353,1756185116681,-269.52601905,0.00012,2]
[381399354,1756185116692,-658.23884595,0.00012,2]
[381399355,1756185116702,-365.088446,0.00012,2]
[381399356,1756185116719,-423.27708309,0.0001726,2]
[381399357,1756185116728,-507.81,0.0001726,2]
[381399358,1756185116737,-400.0,0.0001726,2]
[381399359,1756185116746,-882.97,0.0001726,2]
[381399360,1756185116756,-400.0,0.0001726,2]
[381399361,1756185116765,-870.8,0.0001726,2]
[381399362,1756185116774,-85.24261422,0.0001726,2]
[381399363,1756185116788,-1040.86738578,0.0001726,2]
[381399364,1756185116798,-400.0,0.0001726,2]
[381399365,1756185116807,-400.0,0.0001726,2]
[381399366,1756185116816,-1214.94,0.0001726,2]
[381399367,1756185116826,-1417.37,0.0001726,2]
[381399368,1756185116835,-400.0,0.0001726,2]
[381399369,1756185116844,-523.1,0.0001726,2]
[381399370,1756185116853,-1284.26,0.0001726,2]
[381399371,1756185116864,-202.84599095,0.0001726,2]
[381399372,1756185116876,-197.15400905,0.0001726,2]
[381399373,1756185116886,-1560.06,0.0001726,2]
[381399374,1756185116896,-1212.92,0.0001726,2]
[381399375,1756185116905,-1009.02,0.0001726,2]
[381399376,1756185116914,-149.48585978,0.0001726,2]
[381399377,1756185116926,-470.36414022,0.0001726,2]
[381399378,1756185116935,-519.8,0.0001726,2]
[381399379,1756185116944,-400.0,0.0001726,2]
[381399380,1756185116954,-473.64,0.0001726,2]
[381399381,1756185116965,-689.08,0.0001726,2]
[381399382,1756185116975,-1130.17,0.0001726,2]
[381399383,1756185116984,-613.11,0.0001726,2]
[381399384,1756185116994,-136.10425004,0.0001726,2]
[381399385,1756185117006,-411.87574996,0.0001726,2]
[381399386,1756185117015,-491.37,0.0001726,2]
[381399387,1756185117024,-400.0,0.0001726,2]
[381399388,1756185117034,-1204.85,0.0001726,2]
[381399389,1756185117043,-1258.14,0.0001726,2]
[381399390,1756185117052,-400.0,0.0001726,2]
[381399391,1756185117061,-400.0,0.0001726,2]
[381399392,1756185117071,-400.0,0.0001726,2]
[381399393,1756185117080,-400.0,0.0001726,2]
[381399394,1756185117089,-743.23,0.0001726,2]
[381399395,1756185117101,-853.0,0.0001726,2]
[381399396,1756185117110,-1211.77,0.0001726,2]
[381399397,1756185117119,-400.0,0.0001726,2]
[381399398,1756185117128,-1015.19,0.0001726,2]
[381399399,1756185117142,-716.92,0.0001726,2]
[381399400,1756185117151,-1387.66,0.0001726,2]
[381399401,1756185117161,-1320.35,0.0001726,2]
[381399402,1756185117172,-496.44,0.0001726,2]
[381399403,1756185117182,-1252.32,0.0001726,2]
[381399404,1756185117191,-1766.22,0.0001726,2]
[381399405,1756185117200,-1630.14,0.0001726,2]
[381399406,1756185117210,-409.0,0.0001726,2]
[381399407,1756185117219,-755.04,0.0001726,2]
[381399408,1756185117228,-400.0,0.0001726,2]
[381399409,1756185117238,-343.44875,0.0001726,2]
[381399410,1756185117699,-1037.83,0.0001726,2]
[381399411,1756185117714,-400.0,0.0001726,2]
[381399412,1756185117725,-400.0,0.0001726,2]
[381399413,1756185117735,-860.44,0.0001726,2]
[381399414,1756185117744,-603.97,0.0001726,2]
[381399415,1756185117755,-400.0,0.0001726,2]
[381399416,1756185117764,-1020.12,0.0001726,2]
[381399417,1756185117773,-400.0,0.0001726,2]
[381399418,1756185117785,-400.0,0.0001726,2]
[381399419,1756185117796,-190.66224016,0.0001726,2]
[381399420,1756185117810,-209.33775984,0.0001726,2]
[381399421,1756185117820,-400.0,0.0001726,2]
[381399422,1756185117829,-1202.85,0.0001726,2]
[381399423,1756185117840,-502.27,0.0001726,2]
[381399424,1756185117851,-518.67,0.0001726,2]
[381399425,1756185117861,-1460.199064,0.0001726,2]
[381399426,1756185117871,-658.4,0.0001726,2]
[381399427,1756185117881,-715.24,0.0001726,2]
[381399428,1756185117891,-400.0,0.0001726,2]
[381399429,1756185117900,-431.95,0.0001726,2]
[381399430,1756185117910,-778.49,0.0001726,2]
[381399431,1756185117920,-497.0,0.0001726,2]
[381399432,1756185117929,-400.0,0.0001726,2]
[381399433,1756185117939,-1377.54,0.0001726,2]
[381399434,1756185117948,-1059.93,0.0001726,2]
[381399435,1756185117957,-1022.45,0.0001726,2]
[381399436,1756185117967,-400.0,0.0001726,2]
[381399437,1756185117976,-773.78,0.0001726,2]
[381399438,1756185117986,-400.0,0.0001726,2]
[381399439,1756185117995,-400.0,0.0001726,2]
[381399440,1756185118005,-400.0,0.0001726,2]
[381399441,1756185118014,-400.0,0.0001726,2]
[381399442,1756185118023,-806.64,0.0001726,2]
[381399443,1756185118032,-1361.84,0.0001726,2]
[381399444,1756185118042,-400.0,0.0001726,2]
[381399445,1756185118051,-400.0,0.0001726,2]
[381399446,1756185118061,-729.3,0.0001726,2]
[381399447,1756185118071,-400.0,0.0001726,2]
[381399448,1756185118080,-612.91,0.0001726,2]
[381399449,1756185118090,-801.26,0.0001726,2]
[381399450,1756185118099,-1291.65,0.0001726,2]
[381399451,1756185118109,-7354.8,0.0001726,2]
[381399452,1756185118119,-400.0,0.0001726,2]
[381399453,1756185118128,-400.0,0.0001726,2]
[381399454,1756185118138,-400.0,0.0001726,2]
[381399455,1756185118147,-900.48,0.0001726,2]
[381399456,1756185118156,-724.77,0.0001726,2]
[381399457,1756185118165,-1042.93,0.0001726,2]
[381399458,1756185118175,-534.68,0.0001726,2]
[381399459,1756185118184,-400.0,0.0001726,2]
[381399460,1756185118193,-400.0,0.0001726,2]
[381399461,1756185118202,-1108.04,0.0001726,2]
[381399462,1756185118212,-400.0,0.0001726,2]
[381399463,1756185118223,-400.0,0.0001726,2]
[381399464,1756185118233,-400.0,0.0001726,2]
[381399465,1756185118244,-672.94,0.0001726,2]
[381399466,1756185118254,-843.77,0.0001726,2]
[381399467,1756185118265,-713.49,0.0001726,2]
[381399468,1756185118275,-400.0,0.0001726,2]
[381399469,1756185118286,-710.67,0.0001726,2]
[381399470,1756185118296,-1603.49,0.0001726,2]
[381399471,1756185118307,-1128.06,0.0001726,2]
[381399472,1756185118317,-817.81,0.0001726,2]
[381399473,1756185118327,-733.84,0.0001726,2]
[381399474,1756185118336,-980.62,0.0001726,2]
[381399475,1756185118345,-400.0,0.0001726,2]
[381399476,1756185118355,-914.94,0.0001726,2]
[381399477,1756185118366,-4703.96,0.0001726,2]
[381399478,1756185118378,-668.01,0.0001726,2]
[381399479,1756185118389,-707.29,0.0001726,2]
[381399480,1756185118400,-400.0,0.0001726,2]
[381399481,1756185118413,-2766.74,0.0001726,2]
[381399482,1756185118423,-515.14,0.0001726,2]
[381399483,1756185118433,-1124.0,0.0001726,2]
[381399484,1756185118444,-1838.31,0.0001726,2]
[381399485,1756185118454,-400.0,0.0001726,2]
[381399486,1756185118466,-1381.47,0.0001726,2]
[381399487,1756185118477,-400.0,0.0001726,2]
[381399488,1756185118486,-708.62,0.0001726,2]
[381399489,1756185118497,-400.0,0.0001726,2]
[381399490,1756185118507,-1148.31,0.0001726,2]
[381399491,1756185118518,-400.0,0.0001726,2]
[381399492,1756185118528,-515.12,0.0001726,2]
[381399493,1756185118538,-400.0,0.0001726,2]
[381399494,1756185118548,-717.61,0.0001726,2]
[381399495,1756185118558,-1440.43,0.0001726,2]
[381399496,1756185118567,-663.36641501,0.0001726,2]
[381399497,1756185118583,-255.37358499,0.0001726,2]
[381399498,1756185118592,-940.48,0.0001726,2]
[381399499,1756185118603,-167.8347643,0.0001726,2]
[381399500,1756185118614,-232.1652357,0.0001726,2]
[381399501,1756185118623,-400.0,0.0001726,2]
[381399502,1756185118633,-1374.0,0.0001726,2]
[381399503,1756185118642,-632.84,0.0001726,2]
[381399504,1756185118651,-1545.82,0.0001726,2]
[381399505,1756185118661,-400.0,0.0001726,2]
[381399506,1756185118671,-400.0,0.0001726,2]
[381399507,1756185118680,-400.0,0.0001726,2]
[381399508,1756185118692,-529.08,0.0001726,2]
[381399509,1756185118702,-777.79,0.0001726,2]
[381399510,1756185118716,-692.1,0.0001726,2]
[381399511,1756185118726,-889.12,0.0001726,2]
[381399512,1756185118737,-522.6,0.0001726,2]
[381399513,1756185118749,-400.0,0.0001726,2]
[381399514,1756185118759,-481.97667367,0.0001726,2]
[381399515,1756185118773,-407.35332633,0.0001726,2]
[381399516,1756185118785,-900.86,0.0001726,2]
[381399517,1756185118795,-1141.86766928,0.0001726,2]
[381399518,1756185120862,-150.0,0.00011893,2]
[381399519,1756185120873,-150.0,0.00011893,2]
[381399520,1756185120882,-151.0,0.000119,2]
[381399521,1756185120891,-453.520144,0.000119,2]
[381399522,1756185120900,-365.088446,0.000119,2]
[381399523,1756185120909,-453.520144,0.00012,2]
[381399524,1756185120918,-365.088446,0.00012,2]
[381399525,1756185120927,-151.0,0.00012,2]
[381399526,1756185120936,-72.93781099,0.00012,2]
[381399527,1756185120947,-380.58233301,0.00012,2]
[381399528,1756185120956,-365.088446,0.00012,2]
[381399529,1756185120965,-151.0,0.00012,2]
[381399530,1756185120974,-453.520144,0.00012,2]
[381399531,1756185120984,-365.088446,0.00012,2]
[381399532,1756185120993,-453.520144,0.00012,2]
[381399533,1756185121002,-110.31994699,0.00012,2]
[381399534,1756185122160,-150.0,0.00011893,2]
[381399535,1756185122170,-365.088446,0.000119,2]
[381399536,1756185122179,-365.088446,0.000119,2]
[381399537,1756185122187,-151.0,0.000119,2]
[381399538,1756185122197,-254.76849901,0.00012,2]
[381399539,1756185122206,-453.520144,0.00012,2]
[381399540,1756185122215,-365.088446,0.00012,2]
[381399541,1756185122224,-453.520144,0.00012,2]
[381399542,1756185122233,-365.088446,0.00012,2]
[381399543,1756185122242,-453.520145,0.00012,2]
[381399544,1756185122251,-365.088446,0.00012,2]
[381399545,1756185122259,-365.088446,0.00012,2]
[381399546,1756185122269,-365.088446,0.00012,2]
[381399547,1756185122278,-365.088446,0.00012,2]
[381399548,1756185122287,-365.088446,0.00012,2]
[381399549,1756185122296,-365.088446,0.00012,2]
[381399550,1756185122305,-365.088446,0.00012,2]
[381399551,1756185122316,-365.088446,0.00012,2]
[381399552,1756185122325,-151.0,0.00012,2]
[381399553,1756185122335,-365.088439,0.00012,2]
[381399554,1756185122343,-150.0,0.00012167,2]
[381399555,1756185122352,-265.47767371,0.00012167,2]
[381399556,1756185122361,-150.0,0.00012167,2]
[381399557,1756185122371,-150.0,0.00012441,2]
[381399558,1756185122379,-150.0,0.00012441,2]
[381399559,1756185122389,-150.0,0.00012715,2]
[381399560,1756185122399,-150.0,0.00012715,2]
[381399561,1756185122407,-225.81333308,0.00012989,2]
[381399562,1756185122416,-274.69040645,0.00012989,2]
[381399563,1756185122426,-151.0,0.00015023,2]
[381399564,1756185122435,-2953.071,0.0001611,2]
[381399565,1756185122444,-895.0,0.0001611,2]
[381399566,1756185122454,-878.97,0.00016438,2]
[381399567,1756185122463,-983.56,0.00016438,2]
[381399568,1756185122472,-1007.24,0.00016438,2]
[381399569,1756185122482,-878.97,0.00016712,2]
[381399570,1756185122491,-983.56,0.00016712,2]
[381399571,1756185122501,-1007.24,0.00016712,2]
[381399572,1756185122510,-166.12,0.00016712,2]
[381399573,1756185122519,-878.97,0.00016986,2]
[381399574,1756185122530,-983.56,0.00016986,2]
[381399575,1756185122540,-702.84233072,0.0001726,2]
[381399576,1756185122550,-400.0,0.0001726,2]
[381399577,1756185122561,-570.5,0.0001726,2]
[381399578,1756185122570,-1112.62,0.0001726,2]
[381399579,1756185122579,-400.0,0.0001726,2]
[381399580,1756185122589,-698.74,0.0001726,2]
[381399581,1756185122598,-400.0,0.0001726,2]
[381399582,1756185122607,-400.0,0.0001726,2]
[381399583,1756185122617,-1194.81,0.0001726,2]
[381399584,1756185122629,-646.67,0.0001726,2]
[381399585,1756185122638,-400.0,0.0001726,2]
[381399586,1756185122648,-400.0,0.0001726,2]
[381399587,1756185122658,-799.24,0.0001726,2]
[381399588,1756185122668,-400.0,0.0001726,2]
[381399589,1756185122678,-639.24,0.0001726,2]
[381399590,1756185122687,-712.45,0.0001726,2]
[381399591,1756185122697,-400.0,0.0001726,2]
[381399592,1756185122711,-649.29,0.0001726,2]
[381399593,1756185122720,-694.05,0.0001726,2]
[381399594,1756185122730,-1372.88,0.0001726,2]
[381399595,1756185122739,-435.22,0.0001726,2]
[381399596,1756185122748,-893.58,0.0001726,2]
[381399597,1756185122758,-835.85,0.0001726,2]
[381399598,1756185122769,-477.45,0.0001726,2]
[381399599,1756185122780,-820.22,0.0001726,2]
[381399600,1756185122792,-1349.89,0.0001726,2]
[381399601,1756185122804,-1046.15,0.0001726,2]
[381399602,1756185122815,-1164.46,0.0001726,2]
[381399603,1756185122824,-1295.44,0.0001726,2]
[381399604,1756185122835,-1159.52,0.0001726,2]
[381399605,1756185122846,-502.61,0.0001726,2]
[381399606,1756185122858,-400.0,0.0001726,2]
[381399607,1756185122868,-400.0,0.0001726,2]
[381399608,1756185122878,-400.0,0.0001726,2]
[381399609,1756185122888,-400.0,0.0001726,2]
[381399610,1756185122898,-721.88,0.0001726,2]
[381399611,1756185122907,-622.58,0.0001726,2]
[381399612,1756185122917,-555.93,0.0001726,2]
[381399613,1756185122927,-1204.04,0.0001726,2]
[381399614,1756185122936,-400.0,0.0001726,2]
[381399615,1756185122946,-400.0,0.0001726,2]
[381399616,1756185122955,-400.0,0.0001726,2]
[381399617,1756185122964,-400.0,0.0001726,2]
[381399618,1756185122974,-400.0,0.0001726,2]
[381399619,1756185122983,-1147.15,0.0001726,2]
[381399620,1756185122992,-678.83,0.0001726,2]
[381399621,1756185123001,-658.04,0.0001726,2]
[381399622,1756185123010,-621.48,0.0001726,2]
[381399623,1756185123019,-744.1,0.0001726,2]
[381399624,1756185123029,-877.5,0.0001726,2]
[381399625,1756185123039,-609.98,0.0001726,2]
[381399626,1756185123048,-400.0,0.0001726,2]
[381399627,1756185123057,-1008.47,0.0001726,2]
[381399628,1756185123068,-400.0,0.0001726,2]
[381399629,1756185123078,-400.0,0.0001726,2]
[381399630,1756185123087,-694.05,0.0001726,2]
[381399631,1756185123097,-717.36,0.0001726,2]
[381399632,1756185123107,-631.04,0.0001726,2]
[381399633,1756185123117,-646.74,0.0001726,2]
[381399634,1756185123127,-400.0,0.0001726,2]
[381399635,1756185123136,-1756.65,0.0001726,2]
[381399636,1756185123146,-831.43,0.0001726,2]
[381399637,1756185123157,-400.0,0.0001726,2]
[381399638,1756185123166,-698.9,0.0001726,2]
[381399639,1756185123176,-515.96,0.0001726,2]
[381399640,1756185123186,-758.56,0.0001726,2]
[381399641,1756185123196,-1064.01,0.0001726,2]
[381399642,1756185123206,-1152.64,0.0001726,2]
[381399643,1756185123216,-1295.84,0.0001726,2]
[381399644,1756185123226,-943.07,0.0001726,2]
[381399645,1756185123235,-529.45,0.0001726,2]
[381399646,1756185123244,-3022.36,0.0001726,2]
[381399647,1756185123254,-1300.39,0.0001726,2]
[381399648,1756185123263,-400.0,0.0001726,2]
[381399649,1756185123272,-400.0,0.0001726,2]
[381399650,1756185123282,-808.25,0.0001726,2]
[381399651,1756185123291,-400.0,0.0001726,2]
[381399652,1756185123300,-3513.53,0.0001726,2]
[381399653,1756185123311,-855.69,0.0001726,2]
[381399654,1756185123321,-575.19,0.0001726,2]
[381399655,1756185123331,-400.0,0.0001726,2]
[381399656,1756185123345,-784.16,0.0001726,2]
[381399657,1756185123355,-400.0,0.0001726,2]
[381399658,1756185123364,-908.77,0.0001726,2]
[381399659,1756185123374,-1358.78,0.0001726,2]
[381399660,1756185123383,-1462.01,0.0001726,2]
[381399661,1756185123392,-1127.95,0.0001726,2]
[381399662,1756185123402,-1578.25,0.0001726,2]
[381399663,1756185123412,-843.6,0.0001726,2]
[381399664,1756185123422,-400.0,0.0001726,2]
[381399665,1756185123431,-970.12,0.0001726,2]
[381399666,1756185123440,-1124.04,0.0001726,2]
[381399667,1756185123450,-816.56,0.0001726,2]
[381399668,1756185123459,-184.35780931,0.0001726,2]
[381399669,1756185123468,-795.43,0.0001726,2]
[381399670,1756185123477,-473.56,0.0001726,2]
[381399671,1756185123487,-400.0,0.0001726,2]
[381399672,1756185123496,-400.0,0.0001726,2]
[381399673,1756185123506,-400.0,0.0001726,2]
[381399674,1756185123515,-400.0,0.0001726,2]
[381399675,1756185123524,-1844.62,0.0001726,2]
[381399676,1756185123534,-154.27945255,0.0001726,2]
[381399677,1756185123543,-400.0,0.0001726,2]
[381399678,1756185123553,-400.0,0.0001726,2]
[381399679,1756185123563,-1095.05,0.0001726,2]
[381399680,1756185123572,-665.22,0.0001726,2]
[381399681,1756185123582,-1160.21,0.0001726,2]
[381399682,1756185123591,-1675.03,0.0001726,2]
[381399683,1756185123601,-400.0,0.0001726,2]
[381399684,1756185123610,-972.38,0.0001726,2]
[381399685,1756185123620,-6331.17,0.0001726,2]
[381399686,1756185123629,-400.0,0.0001726,2]
[381399687,1756185123639,-848.75,0.0001726,2]
[381399688,1756185123648,-400.0,0.0001726,2]
[381399689,1756185123657,-491.84,0.0001726,2]
[381399690,1756185123667,-400.0,0.0001726,2]
[381399691,1756185123676,-1163.73,0.0001726,2]
[381399692,1756185123685,-400.0,0.0001726,2]
[381399693,1756185123694,-750.71,0.0001726,2]
[381399694,1756185123850,-400.0,0.0001726,2]
[381399695,1756185123860,-699.55,0.0001726,2]
[381399696,1756185123869,-1298.75,0.0001726,2]
[381399697,1756185123879,-400.0,0.0001726,2]
[381399698,1756185123888,-1575.78,0.0001726,2]
[381399699,1756185123898,-736.39,0.0001726,2]
[381399700,1756185123907,-882.34,0.0001726,2]
[381399701,1756185123917,-400.0,0.0001726,2]
[381399702,1756185123926,-458.94,0.0001726,2]
[381399703,1756185123935,-2238.24,0.0001726,2]
[381399704,1756185123944,-577.15,0.0001726,2]
[381399705,1756185123954,-680.8,0.0001726,2]
[381399706,1756185123963,-400.0,0.0001726,2]
[381399707,1756185123972,-686.28,0.0001726,2]
[381399708,1756185123982,-743.51,0.0001726,2]
[381399709,1756185123991,-1110.84,0.0001726,2]
[381399710,1756185124001,-641.72,0.0001726,2]
[381399711,1756185124010,-1083.42,0.0001726,2]
[381399712,1756185124020,-611.45,0.0001726,2]
[381399713,1756185124029,-936.76,0.0001726,2]
[381399714,1756185124038,-749.3,0.0001726,2]
[381399715,1756185124048,-13808.48,0.0001726,2]
[381399716,1756185124057,-510.65,0.0001726,2]
[381399717,1756185124068,-794.26,0.0001726,2]
[381399718,1756185124078,-1535.83,0.0001726,2]
[381399719,1756185124087,-1474.16,0.0001726,2]
[381399720,1756185124096,-1216.05,0.0001726,2]
[381399721,1756185124106,-400.0,0.0001726,2]
[381399722,1756185124115,-469.77,0.0001726,2]
[381399723,1756185124124,-1339.12,0.0001726,2]
[381399724,1756185124134,-400.0,0.0001726,2]
[381399725,1756185124145,-1028.22,0.0001726,2]
[381399726,1756185124154,-1640.73,0.0001726,2]
[381399727,1756185124163,-937.7,0.0001726,2]
[381399728,1756185124173,-400.0,0.0001726,2]
[381399729,1756185124183,-1473.64,0.0001726,2]
[381399730,1756185124193,-400.0,0.0001726,2]
[381399731,1756185124202,-400.0,0.0001726,2]
[381399732,1756185124212,-1061.7,0.0001726,2]
[381399733,1756185124221,-400.0,0.0001726,2]
[381399734,1756185124231,-642.57,0.0001726,2]
[381399735,1756185124240,-1325.72,0.0001726,2]
[381399736,1756185124250,-475.12,0.0001726,2]
[381399737,1756185124260,-867.48,0.0001726,2]
[381399738,1756185124270,-488.7,0.0001726,2]
[381399739,1756185124279,-400.0,0.0001726,2]
[381399740,1756185124288,-478.64,0.0001726,2]
[381399741,1756185124298,-523.34,0.0001726,2]
[381399742,1756185124308,-1016.17,0.0001726,2]
[381399743,1756185124319,-697.07,0.0001726,2]
[381399744,1756185124329,-457.26,0.0001726,2]
[381399745,1756185124338,-767.7,0.0001726,2]
[381399746,1756185124347,-1314.16,0.0001726,2]
[381399747,1756185124358,-956.49,0.0001726,2]
[381399748,1756185124372,-2266.04,0.0001726,2]
[381399749,1756185124382,-400.0,0.0001726,2]
[381399750,1756185124393,-1321.53,0.0001726,2]
[381399751,1756185124403,-713.28,0.0001726,2]
[381399752,1756185124413,-1403.22,0.0001726,2]
[381399753,1756185124423,-400.0,0.0001726,2]
[381399754,1756185124433,-785.83,0.0001726,2]
[381399755,1756185124443,-1570.98,0.0001726,2]
[381399756,1756185124453,-400.0,0.0001726,2]
[381399757,1756185124463,-1113.09,0.0001726,2]
[381399758,1756185124472,-400.0,0.0001726,2]
[381399759,1756185124482,-183.35836181,0.0001726,2]
[381399760,1756185124492,-946.05,0.0001726,2]
[381399761,1756185124502,-954.65,0.0001726,2]
[381399762,1756185124512,-801.97,0.0001726,2]
[381399763,1756185124523,-843.54,0.0001726,2]
[381399764,1756185124533,-1017.77,0.0001726,2]
[381399765,1756185124543,-511.55,0.0001726,2]
[381399766,1756185124554,-781.14,0.0001726,2]
[381399767,1756185124565,-1243.21,0.0001726,2]
[381399768,1756185124575,-811.09,0.0001726,2]
[381399769,1756185124584,-578.17,0.0001726,2]
[381399770,1756185124594,-1212.89,0.0001726,2]
[381399771,1756185124604,-479.94,0.0001726,2]
[381399772,1756185124615,-1587.64,0.0001726,2]
[381399773,1756185124625,-310.0,0.0001726,2]
[381399774,1756185124635,-454.56,0.0001726,2]
[381399775,1756185124645,-615.51,0.0001726,2]
[381399776,1756185124655,-1273.48,0.0001726,2]
[381399777,1756185124665,-400.0,0.0001726,2]
[381399778,1756185124675,-400.0,0.0001726,2]
[381399779,1756185124685,-919.93,0.0001726,2]
[381399780,1756185124694,-808.39,0.0001726,2]
[381399781,1756185124704,-400.0,0.0001726,2]
[381399782,1756185124717,-725.26,0.0001726,2]
[381399783,1756185124728,-829.84,0.0001726,2]
[381399784,1756185124737,-562.6,0.0001726,2]
[381399785,1756185124748,-525.67,0.0001726,2]
[381399786,1756185124760,-403.03,0.0001726,2]
[381399787,1756185124769,-419.16,0.0001726,2]
[381399788,1756185124781,-2310.34,0.0001726,2]
[381399789,1756185124792,-884.55,0.0001726,2]
[381399790,1756185124802,-400.0,0.0001726,2]
[381399791,1756185124811,-669.1,0.0001726,2]
[381399792,1756185124821,-907.22,0.0001726,2]
[381399793,1756185124833,-631.22,0.0001726,2]
[381399794,1756185124843,-1455.82,0.0001726,2]
[381399795,1756185124853,-450.74,0.0001726,2]
[381399796,1756185124864,-873.84,0.0001726,2]
[381399797,1756185124874,-1449.77,0.0001726,2]
[381399798,1756185124884,-583.58,0.0001726,2]
[381399799,1756185124894,-713.66,0.0001726,2]
[381399800,1756185124903,-694.14,0.0001726,2]
[381399801,1756185124913,-883.93,0.0001726,2]
[381399802,1756185124923,-710.69,0.0001726,2]
[381399803,1756185124933,-400.0,0.0001726,2]
[381399804,1756185124943,-538.03607084,0.0001726,2]
[381399805,1756185124954,-699.22,0.0001726,2]
[381399806,1756185124965,-600.44,0.0001726,2]
[381399807,1756185124976,-1073.84,0.0001726,2]
[381399808,1756185124985,-734.98,0.0001726,2]
[381399809,1756185124996,-1370.18,0.0001726,2]
[381399810,1756185125007,-400.0,0.0001726,2]
[381399811,1756185125018,-848.43,0.0001726,2]
[381399812,1756185125029,-820.73,0.0001726,2]
[381399813,1756185125039,-988.52,0.0001726,2]
[381399814,1756185125049,-756.94,0.0001726,2]
[381399815,1756185125061,-5315.54,0.0001726,2]
[381399816,1756185125071,-816.87,0.0001726,2]
[381399817,1756185125081,-699.05,0.0001726,2]
[381399818,1756185125090,-990.41,0.0001726,2]
[381399819,1756185125100,-400.0,0.0001726,2]
[381399820,1756185125110,-739.03,0.0001726,2]
[381399821,1756185125120,-625.92,0.0001726,2]
[381399822,1756185125129,-1120.4,0.0001726,2]
[381399823,1756185125139,-1449.36,0.0001726,2]
[381399824,1756185125149,-400.0,0.0001726,2]
[381399825,1756185125158,-629.06,0.0001726,2]
[381399826,1756185125168,-703.92,0.0001726,2]
[381399827,1756185125178,-1605.98,0.0001726,2]
[381399828,1756185125187,-2526.66,0.0001726,2]
[381399829,1756185125197,-635.42,0.0001726,2]
[381399830,1756185125207,-839.16,0.0001726,2]